[Event "*** SCC Grand Prix: Titled Tuesday Blitz"]
[Site "Chess.com"]
[Date "2020.09.08"]
[Round "4"]
[White "Mazetovic"]
[Black "Hypercar"]
[Result "1-0"]
[WhiteElo "2639"]
[BlackElo "2417"]
[TimeControl "180+1"]
[EndTime "10:39:37 PDT"]
[Termination "Mazetovic won by checkmate"]

1. e4 {[%clk 0:03:00.9]} 1... c6 {[%clk 0:02:58]} 2. Nc3 {[%clk 0:02:55]} 2...
d5 {[%clk 0:02:57.2]} 3. Nf3 {[%clk 0:02:54.9]} 3... Nf6 {[%clk 0:02:56.8]} 4.
e5 {[%clk 0:02:52.4]} 4... Ne4 {[%clk 0:02:55.2]} 5. Ne2 {[%clk 0:02:50.2]} 5...
Bg4 {[%clk 0:02:50.9]} 6. Nfg1 {[%clk 0:02:39.4]} 6... Bxe2 {[%clk 0:02:45.2]}
7. Qxe2 {[%clk 0:02:33.1]} 7... e6 {[%clk 0:02:42]} 8. d3 {[%clk 0:02:15.4]}
8... Bb4+ {[%clk 0:02:26.6]} 9. Kd1 {[%clk 0:02:06.5]} 9... O-O {[%clk
0:02:07.6]} 10. dxe4 {[%clk 0:01:40.5]} 10... dxe4+ {[%clk 0:02:03.5]} 11. Bd2
{[%clk 0:01:40.4]} 11... Na6 {[%clk 0:01:56.8]} 12. c3 {[%clk 0:01:39.3]} 12...
Bc5 {[%clk 0:01:49.3]} 13. Qxe4 {[%clk 0:01:38.6]} 13... Qb6 {[%clk 0:01:48.9]}
14. Bd3 {[%clk 0:01:33.7]} 14... g6 {[%clk 0:01:47.1]} 15. Nf3 {[%clk 0:01:33]}
15... Qxb2 {[%clk 0:01:38.6]} 16. Ke2 {[%clk 0:01:21.6]} 16... Rad8 {[%clk
0:01:37.1]} 17. Rhb1 {[%clk 0:01:09.7]} 17... Qa3 {[%clk 0:01:35.4]} 18. Rxb7
{[%clk 0:01:06.2]} 18... Bb6 {[%clk 0:01:31.4]} 19. Rxb6 {[%clk 0:00:18.3]}
19... axb6 {[%clk 0:01:20.6]} 20. Bxa6 {[%clk 0:00:15.3]} 20... Qxa6+ {[%clk
0:01:21.5]} 21. Ke1 {[%clk 0:00:15.1]} 21... Rd7 {[%clk 0:01:12.6]} 22. h4
{[%clk 0:00:13.3]} 22... Rfd8 {[%clk 0:01:07.1]} 23. h5 {[%clk 0:00:12.5]} 23...
Qb5 {[%clk 0:00:46.7]} 24. h6 {[%clk 0:00:11.8]} 24... Rd3 {[%clk 0:00:16.2]}
25. Rd1 {[%clk 0:00:11]} 25... Qa6 {[%clk 0:00:10]} 26. Qf4 {[%clk 0:00:10.9]}
26... f5 {[%clk 0:00:06.3]} 27. exf6 {[%clk 0:00:10.7]} 27... Qxa2 {[%clk
0:00:04]} 28. f7+ {[%clk 0:00:10.6]} 28... Kf8 {[%clk 0:00:04.3]} 29. Qf6 {[%clk
0:00:10]} 29... Rxd2 {[%clk 0:00:02.5]} 30. Qg7+ {[%clk 0:00:10.1]} 30... Ke7
{[%clk 0:00:03]} 31. f8=Q# {[%clk 0:00:10.6]} 1-0

[Event "*** SCC Grand Prix: Titled Tuesday Blitz"]
[Site "Chess.com"]
[Date "2020.09.08"]
[Round "4"]
[White "aquaticpineapples"]
[Black "PattyCastillo"]
[Result "1/2-1/2"]
[WhiteElo "2218"]
[BlackElo "1914"]
[TimeControl "180+1"]
[EndTime "10:39:39 PDT"]
[Termination "Game drawn by agreement"]

1. d4 {[%clk 0:03:00.9]} 1... d5 {[%clk 0:02:56.8]} 2. Nf3 {[%clk 0:03:01.1]}
2... Nf6 {[%clk 0:02:56.3]} 3. e3 {[%clk 0:03:00.4]} 3... c6 {[%clk 0:02:55]} 4.
b3 {[%clk 0:03:00]} 4... e6 {[%clk 0:02:54.8]} 5. Bb2 {[%clk 0:02:59.6]} 5...
Nbd7 {[%clk 0:02:55.1]} 6. Bd3 {[%clk 0:02:59.3]} 6... Bd6 {[%clk 0:02:55.3]} 7.
Ne5 {[%clk 0:02:57.8]} 7... O-O {[%clk 0:02:54.7]} 8. Nd2 {[%clk 0:02:57.4]}
8... Qe7 {[%clk 0:02:54.8]} 9. a3 {[%clk 0:02:56.4]} 9... c5 {[%clk 0:02:52.3]}
10. O-O {[%clk 0:02:55.7]} 10... b6 {[%clk 0:02:51.8]} 11. f4 {[%clk 0:02:55.4]}
11... Bb7 {[%clk 0:02:51.5]} 12. Rf3 {[%clk 0:02:55.4]} 12... Rac8 {[%clk
0:02:51.3]} 13. Rh3 {[%clk 0:02:55.2]} 13... Ne4 {[%clk 0:02:51]} 14. Nxd7
{[%clk 0:02:38.5]} 14... Qxd7 {[%clk 0:02:49.7]} 15. Qh5 {[%clk 0:02:35.2]}
15... h6 {[%clk 0:02:44.5]} 16. Bxe4 {[%clk 0:02:15.7]} 16... dxe4 {[%clk
0:02:43.3]} 17. dxc5 {[%clk 0:02:03.5]} 17... Bxc5 {[%clk 0:02:42.4]} 18. Bxg7
{[%clk 0:01:41]} 18... Bxe3+ {[%clk 0:01:53.3]} 19. Rxe3 {[%clk 0:01:28.4]}
19... Kxg7 {[%clk 0:01:53.1]} 20. Nxe4 {[%clk 0:00:43.7]} 20... Qd4 {[%clk
0:01:38.1]} 21. Qe5+ {[%clk 0:00:16.5]} 21... Qxe5 {[%clk 0:01:32.8]} 22. fxe5
{[%clk 0:00:17.4]} 22... Bxe4 {[%clk 0:01:32.2]} 23. Rxe4 {[%clk 0:00:16.5]}
23... Rxc2 {[%clk 0:01:32.3]} 24. Ra4 {[%clk 0:00:14.6]} 24... Re2 {[%clk
0:01:26.4]} 25. Rxa7 {[%clk 0:00:13.1]} 25... Rxe5 {[%clk 0:01:25.7]} 26. a4
{[%clk 0:00:07.1]} 26... Rc8 {[%clk 0:01:23.7]} 27. Rf1 {[%clk 0:00:05.6]} 27...
Rf5 {[%clk 0:01:16.3]} 28. Rxf5 {[%clk 0:00:04.8]} 28... exf5 {[%clk 0:01:16.6]}
29. a5 {[%clk 0:00:03.8]} 29... bxa5 {[%clk 0:01:16.5]} 30. Rxa5 {[%clk
0:00:03.9]} 30... Rb8 {[%clk 0:01:14.7]} 31. Rxf5 {[%clk 0:00:01.5]} 31... Rxb3
{[%clk 0:01:14.6]} 32. h3 {[%clk 0:00:02.3]} 32... Rb2 {[%clk 0:01:12.5]} 33.
Rf2 {[%clk 0:00:03.2]} 33... Rb1+ {[%clk 0:01:12.4]} 34. Kh2 {[%clk 0:00:03.3]}
34... Rb3 {[%clk 0:01:12]} 35. Re2 {[%clk 0:00:03.5]} 35... Kg6 {[%clk
0:01:09.7]} 36. Rf2 {[%clk 0:00:04.2]} 36... f6 {[%clk 0:01:09.1]} 37. Ra2
{[%clk 0:00:04.8]} 37... h5 {[%clk 0:01:08.4]} 38. Rc2 {[%clk 0:00:04.7]} 38...
h4 {[%clk 0:01:06.9]} 39. Rf2 {[%clk 0:00:05.2]} 39... Rg3 {[%clk 0:01:06.3]}
40. Re2 {[%clk 0:00:05.1]} 40... f5 {[%clk 0:01:04.2]} 41. Rd2 {[%clk
0:00:05.2]} 41... Kg5 {[%clk 0:01:04.4]} 42. Rd4 {[%clk 0:00:05.2]} 42... Re3
{[%clk 0:01:00.6]} 43. Rd8 {[%clk 0:00:04.9]} 43... Re4 {[%clk 0:00:57.9]} 44.
Rg8+ {[%clk 0:00:04.7]} 44... Kf4 {[%clk 0:00:57.7]} 45. Rh8 {[%clk 0:00:04.5]}
45... Ke3 {[%clk 0:00:57.5]} 46. Rf8 {[%clk 0:00:04.6]} 46... f4 {[%clk
0:00:57.6]} 47. Rh8 {[%clk 0:00:04.9]} 47... f3 {[%clk 0:00:56.5]} 48. gxf3
{[%clk 0:00:04.9]} 48... Kxf3 {[%clk 0:00:56.9]} 49. Rf8+ {[%clk 0:00:05.6]}
49... Rf4 {[%clk 0:00:54.8]} 50. Rxf4+ {[%clk 0:00:04.7]} 50... Kxf4 {[%clk
0:00:55]} 51. Kg2 {[%clk 0:00:05.6]} 1/2-1/2

[Event "*** SCC Grand Prix: Titled Tuesday Blitz"]
[Site "Chess.com"]
[Date "2020.09.08"]
[Round "4"]
[White "Annawel"]
[Black "crescentmoon2411"]
[Result "1/2-1/2"]
[WhiteElo "2948"]
[BlackElo "2771"]
[TimeControl "180+1"]
[EndTime "10:39:40 PDT"]
[Termination "Game drawn by repetition"]

1. e4 {[%clk 0:03:00.9]} 1... e6 {[%clk 0:02:58.7]} 2. d4 {[%clk 0:03:00.6]}
2... d5 {[%clk 0:02:59.2]} 3. Nc3 {[%clk 0:03:01.3]} 3... Bb4 {[%clk 0:02:58.1]}
4. Ne2 {[%clk 0:03:00]} 4... dxe4 {[%clk 0:02:54.2]} 5. a3 {[%clk 0:02:57.4]}
5... Bxc3+ {[%clk 0:02:44.3]} 6. Nxc3 {[%clk 0:02:57]} 6... Nf6 {[%clk
0:02:44.3]} 7. Bg5 {[%clk 0:02:56.2]} 7... Nbd7 {[%clk 0:01:56.5]} 8. Nxe4
{[%clk 0:02:55.6]} 8... h6 {[%clk 0:01:50.4]} 9. Bh4 {[%clk 0:02:55.4]} 9... a6
{[%clk 0:01:03.6]} 10. Qf3 {[%clk 0:02:49.8]} 10... g5 {[%clk 0:01:00.9]} 11.
Bg3 {[%clk 0:02:48.1]} 11... Nxe4 {[%clk 0:00:56.3]} 12. Qxe4 {[%clk 0:02:47.7]}
12... c6 {[%clk 0:00:38.8]} 13. h4 {[%clk 0:02:35.5]} 13... Nf6 {[%clk
0:00:30.2]} 14. Qe5 {[%clk 0:02:32]} 14... Rg8 {[%clk 0:00:30.4]} 15. O-O-O
{[%clk 0:02:30.7]} 15... Nh5 {[%clk 0:00:23.4]} 16. Bh2 {[%clk 0:02:21.6]} 16...
Qd5 {[%clk 0:00:19.1]} 17. Be2 {[%clk 0:02:19.3]} 17... Qxe5 {[%clk 0:00:15.7]}
18. Bxe5 {[%clk 0:02:18.9]} 18... Nf4 {[%clk 0:00:15.6]} 19. Bf3 {[%clk
0:02:19.5]} 19... Ke7 {[%clk 0:00:15.3]} 20. hxg5 {[%clk 0:02:17.3]} 20... hxg5
{[%clk 0:00:16.2]} 21. c4 {[%clk 0:02:03.9]} 21... Ng6 {[%clk 0:00:14.1]} 22.
Bc7 {[%clk 0:02:03.2]} 22... Bd7 {[%clk 0:00:12.7]} 23. c5 {[%clk 0:02:00.9]}
23... Rh8 {[%clk 0:00:11.9]} 24. Bd6+ {[%clk 0:01:57.5]} 24... Kf6 {[%clk
0:00:12]} 25. Bh5 {[%clk 0:01:57]} 25... Kg7 {[%clk 0:00:11.5]} 26. g3 {[%clk
0:01:54.9]} 26... f6 {[%clk 0:00:10.8]} 27. Kd2 {[%clk 0:01:53.3]} 27... Rh6
{[%clk 0:00:10.7]} 28. Bf3 {[%clk 0:01:53.4]} 28... Rah8 {[%clk 0:00:09.6]} 29.
Ke3 {[%clk 0:01:52]} 29... Kf7 {[%clk 0:00:09.4]} 30. b4 {[%clk 0:01:51.3]}
30... Ne7 {[%clk 0:00:09.5]} 31. g4 {[%clk 0:01:47.2]} 31... Nd5+ {[%clk
0:00:09]} 32. Kd2 {[%clk 0:01:45.8]} 32... Rh3 {[%clk 0:00:08]} 33. Bg3 {[%clk
0:01:46.5]} 33... Rxh1 {[%clk 0:00:08.1]} 34. Rxh1 {[%clk 0:01:46.2]} 34... Rxh1
{[%clk 0:00:09]} 35. Bxh1 {[%clk 0:01:46.5]} 35... Ne7 {[%clk 0:00:07.7]} 36. a4
{[%clk 0:01:45.2]} 36... Nd5 {[%clk 0:00:07.9]} 37. Bxd5 {[%clk 0:00:59.9]}
37... exd5 {[%clk 0:00:07.6]} 38. f3 {[%clk 0:01:00]} 38... f5 {[%clk
0:00:07.5]} 39. gxf5 {[%clk 0:01:00.2]} 39... Bxf5 {[%clk 0:00:08.4]} 40. Ke3
{[%clk 0:01:01]} 40... Bc2 {[%clk 0:00:07.8]} 41. a5 {[%clk 0:01:01.2]} 41...
Kg6 {[%clk 0:00:07.8]} 42. Bc7 {[%clk 0:01:01.4]} 42... Kf5 {[%clk 0:00:07.6]}
43. Bd8 {[%clk 0:01:01.7]} 43... Ba4 {[%clk 0:00:07.1]} 44. Kf2 {[%clk
0:01:01.2]} 44... Bd1 {[%clk 0:00:07.1]} 45. Ke3 {[%clk 0:00:59.7]} 45... Ba4
{[%clk 0:00:07.1]} 46. Be7 {[%clk 0:00:59.7]} 46... Bd1 {[%clk 0:00:06.8]} 47.
Bd8 {[%clk 0:01:00.5]} 47... Ba4 {[%clk 0:00:07]} 1/2-1/2

[Event "*** SCC Grand Prix: Titled Tuesday Blitz"]
[Site "Chess.com"]
[Date "2020.09.08"]
[Round "4"]
[White "nrvisakh"]
[Black "Sashadav97"]
[Result "1-0"]
[WhiteElo "2741"]
[BlackElo "2536"]
[TimeControl "180+1"]
[EndTime "10:39:40 PDT"]
[Termination "nrvisakh won by resignation"]

1. e4 {[%clk 0:03:00.9]} 1... c5 {[%clk 0:02:58.3]} 2. Nf3 {[%clk 0:02:59]} 2...
Nc6 {[%clk 0:02:57.9]} 3. d4 {[%clk 0:02:58.9]} 3... cxd4 {[%clk 0:02:57.6]} 4.
Nxd4 {[%clk 0:02:59.8]} 4... Nf6 {[%clk 0:02:49.6]} 5. Nc3 {[%clk 0:02:59.8]}
5... d6 {[%clk 0:02:47.4]} 6. Bg5 {[%clk 0:02:52.7]} 6... e6 {[%clk 0:02:45.5]}
7. Qd2 {[%clk 0:02:49.1]} 7... a6 {[%clk 0:02:42.3]} 8. O-O-O {[%clk 0:02:46]}
8... Bd7 {[%clk 0:02:41.4]} 9. f4 {[%clk 0:02:45]} 9... Be7 {[%clk 0:02:38.2]}
10. Kb1 {[%clk 0:02:35.6]} 10... b5 {[%clk 0:02:34.8]} 11. Bxf6 {[%clk
0:02:27.5]} 11... Bxf6 {[%clk 0:02:31.6]} 12. Nf3 {[%clk 0:02:19.4]} 12... Be7
{[%clk 0:02:30.5]} 13. g4 {[%clk 0:02:11.4]} 13... Qc7 {[%clk 0:02:24.1]} 14. h4
{[%clk 0:02:09.8]} 14... O-O {[%clk 0:02:21.6]} 15. g5 {[%clk 0:02:09.8]} 15...
Rfd8 {[%clk 0:02:08.4]} 16. h5 {[%clk 0:02:09.3]} 16... Na5 {[%clk 0:01:51.8]}
17. g6 {[%clk 0:02:07.6]} 17... fxg6 {[%clk 0:01:48.3]} 18. hxg6 {[%clk
0:02:07.1]} 18... h6 {[%clk 0:01:48.9]} 19. f5 {[%clk 0:02:04.4]} 19... Bf6
{[%clk 0:01:34.3]} 20. fxe6 {[%clk 0:01:22.2]} 20... Bxe6 {[%clk 0:01:35.2]} 21.
Nd5 {[%clk 0:01:20.6]} 21... Bxd5 {[%clk 0:01:29.5]} 22. Qxd5+ {[%clk
0:01:20.3]} 22... Kh8 {[%clk 0:01:26.9]} 23. Ng5 {[%clk 0:01:16.4]} 23... Bxg5
{[%clk 0:01:26.1]} 24. Qxg5 {[%clk 0:01:17.3]} 24... Nc4 {[%clk 0:01:20.7]} 25.
Bxc4 {[%clk 0:01:01.1]} 25... bxc4 {[%clk 0:01:10.3]} 26. Rdf1 {[%clk
0:00:58.8]} 26... Rf8 {[%clk 0:01:07.1]} 27. Rfg1 {[%clk 0:00:56.5]} 27... Kg8
{[%clk 0:00:35]} 28. Qd5+ {[%clk 0:00:53.9]} 28... Kh8 {[%clk 0:00:35.2]} 29. a4
{[%clk 0:00:47.7]} 29... Rab8 {[%clk 0:00:32]} 30. a5 {[%clk 0:00:32.4]} 30...
Rf6 {[%clk 0:00:19.6]} 31. Qg5 {[%clk 0:00:18.6]} 31... Rbf8 {[%clk 0:00:10.5]}
32. Rxh6+ {[%clk 0:00:14.6]} 1-0

[Event "*** SCC Grand Prix: Titled Tuesday Blitz"]
[Site "Chess.com"]
[Date "2020.09.08"]
[Round "4"]
[White "GaboSalazar2001"]
[Black "Anna_ChessMate"]
[Result "1-0"]
[WhiteElo "2347"]
[BlackElo "2507"]
[TimeControl "180+1"]
[EndTime "10:39:42 PDT"]
[Termination "GaboSalazar2001 won on time"]

1. e4 {[%clk 0:03:00.9]} 1... c6 {[%clk 0:02:59.5]} 2. Nc3 {[%clk 0:03:00.5]}
2... d5 {[%clk 0:03:00.4]} 3. Nf3 {[%clk 0:03:01.1]} 3... Bg4 {[%clk 0:02:59]}
4. h3 {[%clk 0:03:00.8]} 4... Bxf3 {[%clk 0:02:58.5]} 5. gxf3 {[%clk 0:02:59.6]}
5... e5 {[%clk 0:02:54.8]} 6. exd5 {[%clk 0:02:57.7]} 6... cxd5 {[%clk
0:02:54.7]} 7. Bb5+ {[%clk 0:02:58.4]} 7... Nc6 {[%clk 0:02:54.7]} 8. Qe2 {[%clk
0:02:59]} 8... Bd6 {[%clk 0:02:50.7]} 9. d4 {[%clk 0:02:59]} 9... Ne7 {[%clk
0:02:39.8]} 10. dxe5 {[%clk 0:02:51.6]} 10... Bb4 {[%clk 0:02:39.8]} 11. Bd2
{[%clk 0:02:25.8]} 11... O-O {[%clk 0:02:33.4]} 12. Bxc6 {[%clk 0:02:19.1]}
12... bxc6 {[%clk 0:02:33.6]} 13. Rg1 {[%clk 0:02:05.3]} 13... Nf5 {[%clk
0:02:26.7]} 14. Qd3 {[%clk 0:02:02.1]} 14... Qc8 {[%clk 0:02:09.8]} 15. O-O-O
{[%clk 0:01:54.7]} 15... Re8 {[%clk 0:02:09.1]} 16. Rg5 {[%clk 0:01:49.4]} 16...
g6 {[%clk 0:02:01.2]} 17. Rdg1 {[%clk 0:01:44.7]} 17... Ng7 {[%clk 0:02:00.2]}
18. f4 {[%clk 0:01:41.1]} 18... Ne6 {[%clk 0:01:42.7]} 19. R5g2 {[%clk
0:01:40.9]} 19... Nc5 {[%clk 0:01:41.2]} 20. Qg3 {[%clk 0:01:27.7]} 20... Bxc3
{[%clk 0:01:39.9]} 21. Bxc3 {[%clk 0:01:23.3]} 21... Ne4 {[%clk 0:01:38.2]} 22.
Qf3 {[%clk 0:01:18.1]} 22... Qf5 {[%clk 0:01:32.4]} 23. Rg5 {[%clk 0:01:15.7]}
23... Nxg5 {[%clk 0:01:30.9]} 24. Rxg5 {[%clk 0:01:14.4]} 24... Qe4 {[%clk
0:01:30.3]} 25. Qg3 {[%clk 0:00:59.9]} 25... d4 {[%clk 0:01:27.4]} 26. Bd2
{[%clk 0:00:58.1]} 26... h6 {[%clk 0:01:10.1]} 27. Rg4 {[%clk 0:00:57.3]} 27...
h5 {[%clk 0:01:04.8]} 28. Rg5 {[%clk 0:00:55.4]} 28... Kh7 {[%clk 0:00:40.8]}
29. f3 {[%clk 0:00:50]} 29... Qe2 {[%clk 0:00:38.6]} 30. f5 {[%clk 0:00:48.8]}
30... Rg8 {[%clk 0:00:14.9]} 31. e6 {[%clk 0:00:49.2]} 31... Rae8 {[%clk
0:00:10.7]} 32. b3 {[%clk 0:00:32.7]} 32... Rxe6 {[%clk 0:00:02.8]} 33. fxe6
{[%clk 0:00:27.5]} 33... Qxe6 {[%clk 0:00:03.7]} 34. Re5 {[%clk 0:00:23.7]} 1-0

[Event "*** SCC Grand Prix: Titled Tuesday Blitz"]
[Site "Chess.com"]
[Date "2020.09.08"]
[Round "4"]
[White "tmr88"]
[Black "Chess_Dog06"]
[Result "0-1"]
[WhiteElo "2030"]
[BlackElo "2271"]
[TimeControl "180+1"]
[EndTime "10:39:43 PDT"]
[Termination "Chess_Dog06 won on time"]

1. e4 {[%clk 0:03:00.9]} 1... c6 {[%clk 0:02:16.5]} 2. d4 {[%clk 0:02:59.8]}
2... d5 {[%clk 0:02:15.1]} 3. Nc3 {[%clk 0:03:00.1]} 3... dxe4 {[%clk
0:02:15.3]} 4. Nxe4 {[%clk 0:02:59.5]} 4... Nf6 {[%clk 0:02:16.2]} 5. Nxf6+
{[%clk 0:02:58.9]} 5... exf6 {[%clk 0:02:17.1]} 6. c3 {[%clk 0:02:58.9]} 6...
Bd6 {[%clk 0:02:17]} 7. Bd3 {[%clk 0:02:58.9]} 7... O-O {[%clk 0:02:08.8]} 8.
Qc2 {[%clk 0:02:55.6]} 8... Re8+ {[%clk 0:02:07.9]} 9. Ne2 {[%clk 0:02:54]} 9...
h5 {[%clk 0:02:08.2]} 10. O-O {[%clk 0:02:36.7]} 10... Nd7 {[%clk 0:02:05.9]}
11. Ng3 {[%clk 0:02:13.8]} 11... h4 {[%clk 0:02:05]} 12. Nf5 {[%clk 0:02:13]}
12... h3 {[%clk 0:02:04.1]} 13. Nxd6 {[%clk 0:02:06.2]} 13... Re6 {[%clk
0:02:03.5]} 14. Nf5 {[%clk 0:01:38.7]} 14... hxg2 {[%clk 0:02:02.4]} 15. Kxg2
{[%clk 0:01:33.5]} 15... Nf8 {[%clk 0:02:02.6]} 16. Bf4 {[%clk 0:01:13.4]} 16...
Ng6 {[%clk 0:01:56.3]} 17. Bg3 {[%clk 0:01:11]} 17... Re8 {[%clk 0:01:49.1]} 18.
Rae1 {[%clk 0:01:02.5]} 18... Be6 {[%clk 0:01:48.8]} 19. Nd6 {[%clk 0:00:53.2]}
19... Re7 {[%clk 0:01:45.3]} 20. Bxg6 {[%clk 0:00:39.8]} 20... fxg6 {[%clk
0:01:42]} 21. Qxg6 {[%clk 0:00:40.2]} 21... Qd7 {[%clk 0:01:42]} 22. Qh5 {[%clk
0:00:23.4]} 22... Rf8 {[%clk 0:01:34.2]} 23. Re3 {[%clk 0:00:22.4]} 23... f5
{[%clk 0:01:34.1]} 24. Bf4 {[%clk 0:00:18.1]} 24... Bd5+ {[%clk 0:01:30.4]} 25.
Kg1 {[%clk 0:00:17]} 25... Rxe3 {[%clk 0:01:30.3]} 26. fxe3 {[%clk 0:00:16.4]}
26... Qe6 {[%clk 0:01:26.3]} 27. Kf2 {[%clk 0:00:15.3]} 27... Rf6 {[%clk
0:01:25.3]} 28. Be5 {[%clk 0:00:14.5]} 28... Rg6 {[%clk 0:01:24.8]} 29. Rg1
{[%clk 0:00:11.4]} 29... Rh6 {[%clk 0:01:24.5]} 30. Qe8+ {[%clk 0:00:10.5]}
30... Qxe8 {[%clk 0:01:22.2]} 31. Nxe8 {[%clk 0:00:10]} 31... g6 {[%clk
0:01:21.4]} 32. Nf6+ {[%clk 0:00:09]} 32... Kf7 {[%clk 0:01:22]} 33. Nxd5 {[%clk
0:00:09.3]} 33... cxd5 {[%clk 0:01:22.7]} 34. Kg3 {[%clk 0:00:07.7]} 34... b5
{[%clk 0:01:20.7]} 35. Kf2 {[%clk 0:00:07.7]} 35... Rh5 {[%clk 0:01:20]} 36. b3
{[%clk 0:00:08]} 36... b4 {[%clk 0:01:20]} 37. cxb4 {[%clk 0:00:07.4]} 37... g5
{[%clk 0:01:20.4]} 38. a4 {[%clk 0:00:07.8]} 38... Ke6 {[%clk 0:01:20.2]} 39. b5
{[%clk 0:00:07.6]} 39... f4 {[%clk 0:01:20.5]} 40. a5 {[%clk 0:00:07.9]} 40...
Rxh2+ {[%clk 0:01:20.5]} 41. Rg2 {[%clk 0:00:06.8]} 41... fxe3+ {[%clk
0:01:20.2]} 42. Kg3 {[%clk 0:00:05.7]} 42... e2 {[%clk 0:01:17.6]} 43. Rxe2
{[%clk 0:00:05.2]} 43... Rxe2 {[%clk 0:01:17.3]} 44. b6 {[%clk 0:00:05.2]} 44...
axb6 {[%clk 0:01:17.5]} 45. axb6 {[%clk 0:00:05.5]} 45... Re3+ {[%clk
0:01:17.9]} 46. Kg4 {[%clk 0:00:04.9]} 46... Rxb3 {[%clk 0:01:18.8]} 47. Bc7
{[%clk 0:00:03.9]} 47... Rb4 {[%clk 0:01:15.1]} 48. Kxg5 {[%clk 0:00:03.9]}
48... Kd7 {[%clk 0:01:13.4]} 49. Kf5 {[%clk 0:00:03]} 49... Kc6 {[%clk
0:01:13.6]} 50. Ke5 {[%clk 0:00:02.7]} 50... Rb1 {[%clk 0:01:13.6]} 51. Bd8
{[%clk 0:00:01.7]} 51... Re1+ {[%clk 0:01:13.5]} 52. Kf5 {[%clk 0:00:01.6]}
52... Rf1+ {[%clk 0:01:13.8]} 53. Ke5 {[%clk 0:00:01.6]} 53... Re1+ {[%clk
0:01:14.1]} 54. Kf5 {[%clk 0:00:02]} 54... Kb7 {[%clk 0:01:12.2]} 55. Kf6 {[%clk
0:00:01.5]} 55... Re4 {[%clk 0:01:11.5]} 56. Bc7 {[%clk 0:00:01.4]} 56... Rxd4
{[%clk 0:01:11.4]} 57. Ke5 {[%clk 0:00:01.9]} 57... Rd1 {[%clk 0:01:11.2]} 58.
Bd8 {[%clk 0:00:01.1]} 58... Kc6 {[%clk 0:01:10.6]} 59. Bc7 {[%clk 0:00:01.1]}
59... Re1+ {[%clk 0:01:08.8]} 0-1

[Event "*** SCC Grand Prix: Titled Tuesday Blitz"]
[Site "Chess.com"]
[Date "2020.09.08"]
[Round "4"]
[White "narutosmith"]
[Black "gagtemp"]
[Result "1-0"]
[WhiteElo "2255"]
[BlackElo "1963"]
[TimeControl "180+1"]
[EndTime "10:39:46 PDT"]
[Termination "narutosmith won by checkmate"]

1. c4 {[%clk 0:03:00.9]} 1... e6 {[%clk 0:02:59.4]} 2. Nc3 {[%clk 0:02:57.6]}
2... d5 {[%clk 0:02:59]} 3. cxd5 {[%clk 0:02:56.6]} 3... exd5 {[%clk 0:02:59.9]}
4. d4 {[%clk 0:02:56.9]} 4... c5 {[%clk 0:02:59.4]} 5. Nf3 {[%clk 0:02:55.3]}
5... Nc6 {[%clk 0:02:59.7]} 6. g3 {[%clk 0:02:55.2]} 6... Nf6 {[%clk 0:02:59.7]}
7. Bg2 {[%clk 0:02:54.6]} 7... Be7 {[%clk 0:03:00]} 8. dxc5 {[%clk 0:02:52.4]}
8... Bxc5 {[%clk 0:02:57.6]} 9. O-O {[%clk 0:02:52.3]} 9... O-O {[%clk
0:02:57.3]} 10. Bg5 {[%clk 0:02:51.8]} 10... d4 {[%clk 0:02:57.2]} 11. Na4
{[%clk 0:02:46.2]} 11... Be7 {[%clk 0:02:52.1]} 12. Rc1 {[%clk 0:02:46.2]} 12...
Bg4 {[%clk 0:02:41.5]} 13. h3 {[%clk 0:02:45]} 13... Be6 {[%clk 0:02:35.9]} 14.
b3 {[%clk 0:02:40.5]} 14... Qd7 {[%clk 0:02:30.2]} 15. Nc5 {[%clk 0:01:39.8]}
15... Bxc5 {[%clk 0:02:25.5]} 16. Rxc5 {[%clk 0:01:40.7]} 16... Ne4 {[%clk
0:02:08.8]} 17. Ne5 {[%clk 0:01:26.3]} 17... Nxe5 {[%clk 0:01:51.7]} 18. Bxe4
{[%clk 0:01:13.6]} 18... f6 {[%clk 0:01:28.8]} 19. Qc2 {[%clk 0:00:39.8]} 19...
Bxh3 {[%clk 0:01:23.5]} 20. Bxh7+ {[%clk 0:00:34.4]} 20... Kh8 {[%clk
0:01:18.6]} 21. Rc1 {[%clk 0:00:32.3]} 21... Nc6 {[%clk 0:01:07.8]} 22. Bf4
{[%clk 0:00:30.4]} 22... g5 {[%clk 0:01:01]} 23. Bf5 {[%clk 0:00:17.5]} 23...
Bxf5 {[%clk 0:00:57.4]} 24. Rxf5 {[%clk 0:00:18.4]} 24... gxf4 {[%clk
0:00:53.5]} 25. Rh5+ {[%clk 0:00:18.3]} 25... Kg8 {[%clk 0:00:49.4]} 26. Qg6+
{[%clk 0:00:16.2]} 26... Qg7 {[%clk 0:00:48.1]} 27. Qf5 {[%clk 0:00:15.3]} 27...
fxg3 {[%clk 0:00:45.8]} 28. Rh3 {[%clk 0:00:15.2]} 28... gxf2+ {[%clk
0:00:44.7]} 29. Kxf2 {[%clk 0:00:15.5]} 29... Ne7 {[%clk 0:00:25.9]} 30. Qe6+
{[%clk 0:00:13.8]} 30... Rf7 {[%clk 0:00:25.3]} 31. Rg1 {[%clk 0:00:13.7]} 31...
Ng6 {[%clk 0:00:24.3]} 32. Rhg3 {[%clk 0:00:10.8]} 32... Rf8 {[%clk 0:00:20]}
33. Rxg6 {[%clk 0:00:09.7]} 33... d3 {[%clk 0:00:14.4]} 34. Rxg7+ {[%clk
0:00:09.4]} 34... Kh8 {[%clk 0:00:13.7]} 35. Rxf7 {[%clk 0:00:09.9]} 35... Rxf7
{[%clk 0:00:12.8]} 36. Qxf7 {[%clk 0:00:10.2]} 36... f5 {[%clk 0:00:12.8]} 37.
Qg7# {[%clk 0:00:10.8]} 1-0